[Event "Titled Tuesday Blitz September 20 Late 2022"]
[White "Kravtsiv, Martyn"]
[Black "Gomez Ledo, Roberto Carlos"]
[WhiteFideId "14113147"]
[BlackFideId "3507076"]
[WhiteElo "2694"]
[BlackElo "2379"]
[Result "1/2-1/2"]
[Round "05"]
[TimeControl "180+1"]
[Date "2022.09.20"]
[WhiteClock "0:00:09"]
[BlackClock "0:00:12"]

1. e4 {[%clk 0:03:00]}  e5 {[%clk 0:02:51]} 2. Nf3 {[%clk 0:03:00]}  Nc6 {[%clk 0:02:50]} 3. Nc3 {[%clk 0:03:00]}  Nf6 {[%clk 0:02:49]} 4. a4 {[%clk 0:03:00]}  a6 {[%clk 0:02:42]} 5. d4 {[%clk 0:02:59]}  exd4 {[%clk 0:02:36]} 6. Nxd4 {[%clk 0:03:00]}  Bb4 {[%clk 0:02:35]} 7. Nxc6 {[%clk 0:03:00]}  bxc6 {[%clk 0:02:33]} 8. Bd3 {[%clk 0:03:00]}  d5 {[%clk 0:02:33]} 9. Bd2 {[%clk 0:02:58]}  O-O {[%clk 0:02:23]} 10. O-O {[%clk 0:02:57]}  Bxc3 {[%clk 0:02:19]} 11. Bxc3 {[%clk 0:02:56]}  Nxe4 {[%clk 0:02:17]} 12. Bxe4 {[%clk 0:02:53]}  dxe4 {[%clk 0:02:17]} 13. Qe2 {[%clk 0:02:52]}  Bf5 {[%clk 0:02:14]} 14. Qe3 {[%clk 0:02:50]}  h6 {[%clk 0:01:47]} 15. Rad1 {[%clk 0:02:31]}  Qg5 {[%clk 0:01:45]} 16. Rd4 {[%clk 0:02:31]}  Qxe3 {[%clk 0:01:43]} 17. fxe3 {[%clk 0:02:31]}  Be6 {[%clk 0:01:33]} 18. Rxe4 {[%clk 0:02:30]}  Rfd8 {[%clk 0:01:29]} 19. h3 {[%clk 0:02:15]}  Rd7 {[%clk 0:01:26]} 20. Re5 {[%clk 0:02:13]}  Rd5 {[%clk 0:01:24]} 21. e4 {[%clk 0:02:09]}  Rxe5 {[%clk 0:01:20]} 22. Bxe5 {[%clk 0:02:10]}  Rb8 {[%clk 0:01:14]} 23. b3 {[%clk 0:01:54]}  Rb7 {[%clk 0:01:12]} 24. Rd1 {[%clk 0:01:51]}  f6 {[%clk 0:01:11]} 25. Rd8+ {[%clk 0:01:47]}  Kf7 {[%clk 0:01:10]} 26. Bd4 {[%clk 0:01:46]}  Rb4 {[%clk 0:01:06]} 27. Bf2 {[%clk 0:01:25]}  Rxe4 {[%clk 0:01:04]} 28. Ra8 {[%clk 0:01:26]}  Re2 {[%clk 0:01:02]} 29. c4 {[%clk 0:01:25]}  Rb2 {[%clk 0:00:58]} 30. Rxa6 {[%clk 0:01:25]}  Rxb3 {[%clk 0:00:58]} 31. Rxc6 {[%clk 0:01:25]}  Rb4 {[%clk 0:00:53]} 32. Rxc7+ {[%clk 0:01:20]}  Kg6 {[%clk 0:00:53]} 33. a5 {[%clk 0:01:09]}  Bxc4 {[%clk 0:00:46]} 34. Bc5 {[%clk 0:00:51]}  Rb1+ {[%clk 0:00:30]} 35. Kh2 {[%clk 0:00:51]}  Ra1 {[%clk 0:00:22]} 36. Bb6 {[%clk 0:00:46]}  Bd5 {[%clk 0:00:20]} 37. Rc5 {[%clk 0:00:46]}  Be4 {[%clk 0:00:19]} 38. g4 {[%clk 0:00:32]}  f5 {[%clk 0:00:14]} 39. gxf5+ {[%clk 0:00:29]}  Bxf5 {[%clk 0:00:14]} 40. h4 {[%clk 0:00:30]}  h5 {[%clk 0:00:14]} 41. Kg3 {[%clk 0:00:29]}  Ra3+ {[%clk 0:00:13]} 42. Kf2 {[%clk 0:00:28]}  Ra2+ {[%clk 0:00:13]} 43. Ke3 {[%clk 0:00:28]}  Ra3+ {[%clk 0:00:14]} 44. Kd2 {[%clk 0:00:22]}  Ra2+ {[%clk 0:00:13]} 45. Kc3 {[%clk 0:00:17]}  Rc2+ {[%clk 0:00:13]} 46. Kb4 {[%clk 0:00:18]}  Rxc5 {[%clk 0:00:13]} 47. Kxc5 {[%clk 0:00:18]}  Bd3 {[%clk 0:00:13]} 48. Bd8 {[%clk 0:00:16]}  Kf7 {[%clk 0:00:10]} 49. Kb6 {[%clk 0:00:16]}  Ke8 {[%clk 0:00:10]} 50. Bg5 {[%clk 0:00:12]}  Kd7 {[%clk 0:00:10]} 51. a6 {[%clk 0:00:13]}  Be4 {[%clk 0:00:09]} 52. Bf4 {[%clk 0:00:11]}  Kc8 {[%clk 0:00:09]} 53. Be5 {[%clk 0:00:10]}  g6 {[%clk 0:00:09]} 54. Bf4 {[%clk 0:00:10]}  Bf3 {[%clk 0:00:09]} 55. Be3 {[%clk 0:00:10]}  Be4 {[%clk 0:00:10]} 56. Kc5 {[%clk 0:00:10]}  Kb8 {[%clk 0:00:09]} 57. Kd4 {[%clk 0:00:09]}  Bf3 {[%clk 0:00:08]} 58. Ke5 {[%clk 0:00:10]}  Ka8 {[%clk 0:00:09]} 59. Bd4 {[%clk 0:00:09]}  Bd1 {[%clk 0:00:08]} 60. Kf6 {[%clk 0:00:08]}  Bc2 {[%clk 0:00:09]} 61. a7 {[%clk 0:00:08]}  Bf5 {[%clk 0:00:09]} 62. Be3 {[%clk 0:00:09]}  Bb1 {[%clk 0:00:10]} 63. Bd4 {[%clk 0:00:09]}  Bf5 {[%clk 0:00:11]} 64. Be3 {[%clk 0:00:09]}  Bb1 {[%clk 0:00:11]} 65. Bd4 {[%clk 0:00:09]}  Bf5 {[%clk 0:00:12]} 1/2-1/2


[Site "https://www.chess.com"]

[Event "Titled Tuesday Blitz September 20 Late 2022"]
[White "Lewtak, Damian"]
[Black "Ozen, Bahadir"]
[WhiteFideId "1141724"]
[BlackFideId "6337058"]
[WhiteElo "2329"]
[BlackElo "2503"]
[Result "1-0"]
[Round "05"]
[TimeControl "180+1"]
[Date "2022.09.20"]
[WhiteClock "0:00:49"]
[BlackClock "0:01:32"]

1. d4 {[%clk 0:02:55]}  Nf6 {[%clk 0:02:58]} 2. Nf3 {[%clk 0:02:54]}  e6 {[%clk 0:02:58]} 3. c4 {[%clk 0:02:53]}  d5 {[%clk 0:02:56]} 4. Nc3 {[%clk 0:02:52]}  c6 {[%clk 0:02:56]} 5. e3 {[%clk 0:02:50]}  Nbd7 {[%clk 0:02:55]} 6. Bd3 {[%clk 0:02:50]}  dxc4 {[%clk 0:02:55]} 7. Bxc4 {[%clk 0:02:50]}  b5 {[%clk 0:02:56]} 8. Be2 {[%clk 0:02:47]}  Bb7 {[%clk 0:02:53]} 9. O-O {[%clk 0:02:37]}  a6 {[%clk 0:02:51]} 10. e4 {[%clk 0:02:25]}  b4 {[%clk 0:02:41]} 11. e5 {[%clk 0:02:25]}  bxc3 {[%clk 0:02:42]} 12. exf6 {[%clk 0:02:25]}  cxb2 {[%clk 0:02:30]} 13. fxg7 {[%clk 0:02:23]}  Bxg7 {[%clk 0:02:31]} 14. Bxb2 {[%clk 0:02:21]}  O-O {[%clk 0:02:16]} 15. Rb1 {[%clk 0:02:20]}  c5 {[%clk 0:02:15]} 16. dxc5 {[%clk 0:02:01]}  Nxc5 {[%clk 0:02:14]} 17. Ba3 {[%clk 0:01:56]}  Qxd1 {[%clk 0:01:50]} 18. Rfxd1 {[%clk 0:01:47]}  Bxf3 {[%clk 0:01:45]} 19. Bxf3 {[%clk 0:01:48]}  Rac8 {[%clk 0:01:44]} 20. Rbc1 {[%clk 0:01:37]}  Na4 {[%clk 0:01:41]} 21. Bxf8 {[%clk 0:01:35]}  Rxf8 {[%clk 0:01:42]} 22. Rd3 {[%clk 0:01:25]}  Bh6 {[%clk 0:01:36]} 23. Rc4 {[%clk 0:01:13]}  Nb2 {[%clk 0:01:35]} 24. Rg4+ {[%clk 0:01:12]}  Kh8 {[%clk 0:01:35]} 25. Rb3 {[%clk 0:01:08]}  Bc1 {[%clk 0:01:35]} 26. Rgb4 {[%clk 0:01:01]}  Rc8 {[%clk 0:01:31]} 27. Rb8 {[%clk 0:00:59]}  Rxb8 {[%clk 0:01:31]} 28. Rxb8+ {[%clk 0:01:00]}  Kg7 {[%clk 0:01:32]} 29. Ra8 {[%clk 0:00:58]}  Na4 {[%clk 0:01:33]} 30. Rxa6 {[%clk 0:00:56]}  Nc3 {[%clk 0:01:33]} 31. Rc6 {[%clk 0:00:51]}  Nxa2 {[%clk 0:01:32]} 32. Rc2 {[%clk 0:00:49]} 1-0


[Site "https://www.chess.com"]

[Event "Titled Tuesday Blitz September 20 Late 2022"]
[White "Martinovici, Ilia"]
[Black "Perez Ponsa, Federico"]
[WhiteFideId "13907034"]
[BlackFideId "117927"]
[WhiteElo "2282"]
[BlackElo "2604"]
[Result "0-1"]
[Round "05"]
[TimeControl "180+1"]
[Date "2022.09.20"]
[WhiteClock "0:00:26"]
[BlackClock "0:00:23"]

1. d4 {[%clk 0:03:00]}  Nf6 {[%clk 0:03:00]} 2. c4 {[%clk 0:03:00]}  g6 {[%clk 0:02:59]} 3. Nc3 {[%clk 0:02:59]}  Bg7 {[%clk 0:03:00]} 4. e4 {[%clk 0:02:58]}  d6 {[%clk 0:03:00]} 5. f3 {[%clk 0:02:56]}  O-O {[%clk 0:03:00]} 6. Bg5 {[%clk 0:02:53]}  c5 {[%clk 0:03:00]} 7. d5 {[%clk 0:02:52]}  e6 {[%clk 0:03:00]} 8. Nge2 {[%clk 0:02:52]}  exd5 {[%clk 0:03:01]} 9. cxd5 {[%clk 0:02:53]}  h6 {[%clk 0:03:01]} 10. Be3 {[%clk 0:02:53]}  Nbd7 {[%clk 0:03:01]} 11. Ng3 {[%clk 0:02:53]}  h5 {[%clk 0:02:51]} 12. Be2 {[%clk 0:02:52]}  h4 {[%clk 0:02:51]} 13. Nf1 {[%clk 0:02:52]}  Nh7 {[%clk 0:02:51]} 14. Nd2 {[%clk 0:02:52]}  f5 {[%clk 0:02:51]} 15. h3 {[%clk 0:02:49]}  Ne5 {[%clk 0:02:50]} 16. O-O {[%clk 0:02:36]}  f4 {[%clk 0:02:49]} 17. Bf2 {[%clk 0:02:34]}  Bf6 {[%clk 0:02:42]} 18. Nc4 {[%clk 0:02:33]}  Nxc4 {[%clk 0:02:30]} 19. Bxc4 {[%clk 0:02:34]}  Ng5 {[%clk 0:02:31]} 20. Kh2 {[%clk 0:02:31]}  Bxh3 {[%clk 0:02:26]} 21. e5 {[%clk 0:02:07]}  Bxe5 {[%clk 0:02:11]} 22. Bxh4 {[%clk 0:02:00]}  Bf5 {[%clk 0:02:06]} 23. Qe1 {[%clk 0:01:50]}  Kg7 {[%clk 0:02:03]} 24. Rh1 {[%clk 0:01:29]}  Rh8 {[%clk 0:01:22]} 25. Kg1 {[%clk 0:01:27]}  Bd4+ {[%clk 0:01:22]} 26. Kf1 {[%clk 0:01:27]}  Qf6 {[%clk 0:01:16]} 27. g4 {[%clk 0:01:15]}  fxg3 {[%clk 0:01:11]} 28. Qxg3 {[%clk 0:01:14]}  Rxh4 {[%clk 0:00:56]} 29. Rxh4 {[%clk 0:01:08]}  Nxf3 {[%clk 0:00:44]} 30. Rxd4 {[%clk 0:00:41]}  Nxd4 {[%clk 0:00:37]} 31. Kg2 {[%clk 0:00:41]}  Rh8 {[%clk 0:00:35]} 32. Re1 {[%clk 0:00:36]}  Bh3+ {[%clk 0:00:30]} 33. Kh1 {[%clk 0:00:26]}  Bf1+ {[%clk 0:00:25]} 34. Kg1 {[%clk 0:00:26]}  Bxc4 {[%clk 0:00:25]} 35. Ne4 {[%clk 0:00:26]}  Nf3+ {[%clk 0:00:23]} 0-1


[Site "https://www.chess.com"]

[Event "Titled Tuesday Blitz September 20 Late 2022"]
[White "Melikyan, Gnel"]
[Black "Yanchenko, Roman"]
[WhiteFideId "54109990"]
[BlackFideId "4137329"]
[WhiteElo "1772"]
[BlackElo "2514"]
[Result "0-1"]
[Round "05"]
[TimeControl "180+1"]
[Date "2022.09.20"]
[WhiteClock "0:01:30"]
[BlackClock "0:02:12"]

1. e4 {[%clk 0:02:55]}  e6 {[%clk 0:03:00]} 2. d4 {[%clk 0:02:54]}  d5 {[%clk 0:03:00]} 3. e5 {[%clk 0:02:55]}  c5 {[%clk 0:03:00]} 4. c3 {[%clk 0:02:55]}  Qb6 {[%clk 0:03:01]} 5. Nf3 {[%clk 0:02:55]}  Bd7 {[%clk 0:03:01]} 6. a3 {[%clk 0:02:55]}  Bb5 {[%clk 0:03:01]} 7. c4 {[%clk 0:02:49]}  Bxc4 {[%clk 0:03:01]} 8. Bxc4 {[%clk 0:02:49]}  dxc4 {[%clk 0:03:02]} 9. d5 {[%clk 0:02:50]}  Ne7 {[%clk 0:03:00]} 10. Nc3 {[%clk 0:02:42]}  exd5 {[%clk 0:02:46]} 11. Nxd5 {[%clk 0:02:42]}  Qc6 {[%clk 0:02:43]} 12. Nxe7 {[%clk 0:02:37]}  Bxe7 {[%clk 0:02:44]} 13. O-O {[%clk 0:02:37]}  Nd7 {[%clk 0:02:40]} 14. Qe2 {[%clk 0:02:32]}  Nb6 {[%clk 0:02:39]} 15. Bg5 {[%clk 0:02:25]}  Bxg5 {[%clk 0:02:37]} 16. Nxg5 {[%clk 0:02:25]}  O-O {[%clk 0:02:37]} 17. e6 {[%clk 0:02:24]}  fxe6 {[%clk 0:02:35]} 18. Qxe6+ {[%clk 0:02:23]}  Qxe6 {[%clk 0:02:35]} 19. Nxe6 {[%clk 0:02:24]}  Rf5 {[%clk 0:02:33]} 20. g4 {[%clk 0:02:21]}  Re5 {[%clk 0:02:30]} 21. Rfe1 {[%clk 0:02:20]}  Rxe1+ {[%clk 0:02:30]} 22. Rxe1 {[%clk 0:02:21]}  Re8 {[%clk 0:02:30]} 23. Kf1 {[%clk 0:02:21]}  Na4 {[%clk 0:02:30]} 24. Re2 {[%clk 0:02:11]}  b6 {[%clk 0:02:29]} 25. f4 {[%clk 0:01:52]}  Nxb2 {[%clk 0:02:28]} 26. f5 {[%clk 0:01:50]}  Nd3 {[%clk 0:02:26]} 27. Rc2 {[%clk 0:01:47]}  b5 {[%clk 0:02:25]} 28. a4 {[%clk 0:01:40]}  a6 {[%clk 0:02:25]} 29. axb5 {[%clk 0:01:39]}  axb5 {[%clk 0:02:26]} 30. Ra2 {[%clk 0:01:40]}  c3 {[%clk 0:02:19]} 31. g5 {[%clk 0:01:32]}  b4 {[%clk 0:02:14]} 32. g6 {[%clk 0:01:30]}  hxg6 {[%clk 0:02:14]} 33. fxg6 {[%clk 0:01:30]}  c2 {[%clk 0:02:12]} 0-1


[Site "https://www.chess.com"]

[Event "Titled Tuesday Blitz September 20 Late 2022"]
[White "Melkumyan, Hrant"]
[Black "Leitao, Rafael"]
[WhiteFideId "13302485"]
[BlackFideId "2101246"]
[WhiteElo "2604"]
[BlackElo "2609"]
[Result "1-0"]
[Round "05"]
[TimeControl "180+1"]
[Date "2022.09.20"]
[WhiteClock "0:00:35"]
[BlackClock "0:00:16"]

1. Nf3 {[%clk 0:03:00]}  Nf6 {[%clk 0:02:59]} 2. c4 {[%clk 0:03:00]}  e6 {[%clk 0:02:52]} 3. Nc3 {[%clk 0:02:58]}  Bb4 {[%clk 0:02:50]} 4. Qb3 {[%clk 0:02:58]}  c5 {[%clk 0:02:48]} 5. g3 {[%clk 0:02:58]}  Nc6 {[%clk 0:02:47]} 6. a3 {[%clk 0:02:42]}  Ba5 {[%clk 0:02:25]} 7. Bg2 {[%clk 0:02:41]}  O-O {[%clk 0:02:25]} 8. O-O {[%clk 0:02:42]}  Bc7 {[%clk 0:02:22]} 9. Rd1 {[%clk 0:02:31]}  d5 {[%clk 0:02:08]} 10. cxd5 {[%clk 0:02:18]}  exd5 {[%clk 0:02:06]} 11. d4 {[%clk 0:02:18]}  cxd4 {[%clk 0:01:41]} 12. Nb5 {[%clk 0:02:13]}  Bb6 {[%clk 0:01:40]} 13. Nbxd4 {[%clk 0:02:07]}  Bg4 {[%clk 0:01:39]} 14. Be3 {[%clk 0:02:07]}  Re8 {[%clk 0:01:38]} 15. Nc2 {[%clk 0:01:59]}  Be6 {[%clk 0:01:15]} 16. Bxb6 {[%clk 0:01:54]}  axb6 {[%clk 0:01:16]} 17. Nfd4 {[%clk 0:01:51]}  Qc7 {[%clk 0:01:11]} 18. Nb5 {[%clk 0:01:42]}  Qe5 {[%clk 0:01:07]} 19. Ncd4 {[%clk 0:01:42]}  Nxd4 {[%clk 0:01:03]} 20. Nxd4 {[%clk 0:01:41]}  Qd6 {[%clk 0:00:59]} 21. Rac1 {[%clk 0:01:39]}  Rac8 {[%clk 0:00:59]} 22. e3 {[%clk 0:01:36]}  h6 {[%clk 0:00:58]} 23. Qd3 {[%clk 0:01:29]}  Rc5 {[%clk 0:00:57]} 24. b4 {[%clk 0:01:26]}  Rc4 {[%clk 0:00:57]} 25. Ne2 {[%clk 0:01:06]}  Qc7 {[%clk 0:00:53]} 26. h3 {[%clk 0:00:53]}  Rc8 {[%clk 0:00:53]} 27. Qd2 {[%clk 0:00:51]}  Rc2 {[%clk 0:00:48]} 28. Rxc2 {[%clk 0:00:48]}  Qxc2 {[%clk 0:00:48]} 29. Qxc2 {[%clk 0:00:48]}  Rxc2 {[%clk 0:00:48]} 30. Nd4 {[%clk 0:00:49]}  Ra2 {[%clk 0:00:40]} 31. Rd3 {[%clk 0:00:43]}  Ne4 {[%clk 0:00:39]} 32. Nxe6 {[%clk 0:00:34]}  fxe6 {[%clk 0:00:33]} 33. Bxe4 {[%clk 0:00:33]}  dxe4 {[%clk 0:00:33]} 34. Rd6 {[%clk 0:00:34]}  Rxa3 {[%clk 0:00:27]} 35. Rxe6 {[%clk 0:00:34]}  Ra6 {[%clk 0:00:20]} 36. Rxe4 {[%clk 0:00:31]}  Ra4 {[%clk 0:00:19]} 37. h4 {[%clk 0:00:31]}  Kf7 {[%clk 0:00:19]} 38. h5 {[%clk 0:00:31]}  b5 {[%clk 0:00:20]} 39. g4 {[%clk 0:00:31]}  Kf6 {[%clk 0:00:20]} 40. Kg2 {[%clk 0:00:31]}  Ra6 {[%clk 0:00:20]} 41. Rf4+ {[%clk 0:00:31]}  Ke6 {[%clk 0:00:20]} 42. Rf5 {[%clk 0:00:32]}  Rb6 {[%clk 0:00:18]} 43. f4 {[%clk 0:00:32]}  Ke7 {[%clk 0:00:19]} 44. Kf3 {[%clk 0:00:33]}  Ke6 {[%clk 0:00:19]} 45. Re5+ {[%clk 0:00:33]}  Kf6 {[%clk 0:00:18]} 46. g5+ {[%clk 0:00:34]}  hxg5 {[%clk 0:00:18]} 47. Rxg5 {[%clk 0:00:35]}  Kf7 {[%clk 0:00:18]} 48. e4 {[%clk 0:00:35]}  Kf6 {[%clk 0:00:19]} 49. Rc5 {[%clk 0:00:35]}  Ra6 {[%clk 0:00:16]} 50. Rxb5 {[%clk 0:00:35]} 1-0


[Site "https://www.chess.com"]

[Event "Titled Tuesday Blitz September 20 Late 2022"]
[White "Mladek, Richard"]
[Black "Salem, A.R. Saleh"]
[WhiteFideId "386588"]
[BlackFideId "9301348"]
[WhiteElo "2263"]
[BlackElo "2628"]
[Result "0-1"]
[Round "05"]
[TimeControl "180+1"]
[Date "2022.09.20"]
[WhiteClock "0:00:03"]
[BlackClock "0:00:09"]

1. e4 {[%clk 0:03:00]}  c5 {[%clk 0:02:55]} 2. Nf3 {[%clk 0:03:00]}  d6 {[%clk 0:02:55]} 3. d4 {[%clk 0:03:01]}  cxd4 {[%clk 0:02:56]} 4. Nxd4 {[%clk 0:03:02]}  Nf6 {[%clk 0:02:57]} 5. Nc3 {[%clk 0:03:02]}  a6 {[%clk 0:02:58]} 6. Rg1 {[%clk 0:02:43]}  h5 {[%clk 0:02:49]} 7. Bg5 {[%clk 0:02:35]}  e6 {[%clk 0:02:47]} 8. Qd2 {[%clk 0:02:29]}  b5 {[%clk 0:02:45]} 9. f3 {[%clk 0:02:27]}  Be7 {[%clk 0:02:16]} 10. O-O-O {[%clk 0:02:16]}  Qc7 {[%clk 0:02:16]} 11. Kb1 {[%clk 0:02:07]}  Nbd7 {[%clk 0:02:09]} 12. h3 {[%clk 0:01:49]}  h4 {[%clk 0:02:09]} 13. g3 {[%clk 0:01:37]}  hxg3 {[%clk 0:02:10]} 14. Rxg3 {[%clk 0:01:37]}  Bb7 {[%clk 0:02:02]} 15. h4 {[%clk 0:01:30]}  Nb6 {[%clk 0:01:20]} 16. Bxf6 {[%clk 0:00:34]}  gxf6 {[%clk 0:01:14]} 17. Rg7 {[%clk 0:00:33]}  b4 {[%clk 0:01:08]} 18. Nce2 {[%clk 0:00:27]}  d5 {[%clk 0:01:08]} 19. exd5 {[%clk 0:00:17]}  Nxd5 {[%clk 0:01:08]} 20. Bh3 {[%clk 0:00:11]}  O-O-O {[%clk 0:01:03]} 21. Bxe6+ {[%clk 0:00:10]}  fxe6 {[%clk 0:01:04]} 22. Nxe6 {[%clk 0:00:11]}  Qe5 {[%clk 0:00:46]} 23. Nxd8 {[%clk 0:00:10]}  Rxd8 {[%clk 0:00:47]} 24. Nd4 {[%clk 0:00:10]}  Ne3 {[%clk 0:00:39]} 25. Re1 {[%clk 0:00:02]}  Rxd4 {[%clk 0:00:38]} 26. Qc1 {[%clk 0:00:01]}  f5 {[%clk 0:00:15]} 27. Rg8+ {[%clk 0:00:02]}  Kc7 {[%clk 0:00:14]} 28. Rxe3 {[%clk 0:00:03]}  Qxe3 {[%clk 0:00:09]} 29. Qxe3 {[%clk 0:00:04]}  Rd1+ {[%clk 0:00:09]} 30. Qc1 {[%clk 0:00:05]}  Rxc1+ {[%clk 0:00:10]} 31. Kxc1 {[%clk 0:00:05]}  Bxf3 {[%clk 0:00:10]} 32. Rg7 {[%clk 0:00:05]}  Kd6 {[%clk 0:00:10]} 33. Kd2 {[%clk 0:00:06]}  Bxh4 {[%clk 0:00:10]} 34. Ke3 {[%clk 0:00:05]}  Be4 {[%clk 0:00:10]} 35. Rg6+ {[%clk 0:00:04]}  Ke5 {[%clk 0:00:10]} 36. Rxa6 {[%clk 0:00:05]}  f4+ {[%clk 0:00:10]} 37. Ke2 {[%clk 0:00:05]}  f3+ {[%clk 0:00:10]} 38. Ke3 {[%clk 0:00:04]}  Bg5+ {[%clk 0:00:10]} 39. Kf2 {[%clk 0:00:05]}  Kf4 {[%clk 0:00:10]} 40. Ra7 {[%clk 0:00:03]}  Bh4+ {[%clk 0:00:10]} 41. Kf1 {[%clk 0:00:03]}  Bxc2 {[%clk 0:00:10]} 42. Rd7 {[%clk 0:00:01]}  Bf5 {[%clk 0:00:09]} 43. Rf7 {[%clk 0:00:02]}  Ke4 {[%clk 0:00:09]} 44. Rb7 {[%clk 0:00:03]}  Bh3+ {[%clk 0:00:09]} 0-1


[Site "https://www.chess.com"]

[Event "Titled Tuesday Blitz September 20 Late 2022"]
[White "Rasulov, Vugar"]
[Black "Navarrete Mendez, Gonzalo Alberto"]
[WhiteFideId "13402390"]
[BlackFideId "5106850"]
[WhiteElo "2509"]
[BlackElo "2261"]
[Result "1/2-1/2"]
[Round "05"]
[TimeControl "180+1"]
[Date "2022.09.20"]
[WhiteClock "0:00:05"]
[BlackClock "0:00:06"]

1. d4 {[%clk 0:03:00]}  d5 {[%clk 0:02:59]} 2. c4 {[%clk 0:03:01]}  dxc4 {[%clk 0:03:00]} 3. Nf3 {[%clk 0:03:01]}  a6 {[%clk 0:02:59]} 4. g3 {[%clk 0:03:01]}  b5 {[%clk 0:02:58]} 5. Bg2 {[%clk 0:03:01]}  Bb7 {[%clk 0:02:51]} 6. O-O {[%clk 0:03:02]}  e6 {[%clk 0:02:48]} 7. b3 {[%clk 0:03:01]}  cxb3 {[%clk 0:02:46]} 8. Qxb3 {[%clk 0:03:01]}  Nd7 {[%clk 0:02:37]} 9. a4 {[%clk 0:02:58]}  b4 {[%clk 0:02:37]} 10. a5 {[%clk 0:02:56]}  Ngf6 {[%clk 0:02:32]} 11. Nbd2 {[%clk 0:02:56]}  Bd6 {[%clk 0:02:28]} 12. Re1 {[%clk 0:02:48]}  O-O {[%clk 0:02:18]} 13. e4 {[%clk 0:02:48]}  e5 {[%clk 0:02:11]} 14. Bb2 {[%clk 0:02:45]}  Re8 {[%clk 0:02:08]} 15. dxe5 {[%clk 0:02:44]}  Nxe5 {[%clk 0:02:09]} 16. Nxe5 {[%clk 0:02:40]}  Bxe5 {[%clk 0:02:10]} 17. Qxb4 {[%clk 0:02:38]}  Bxb2 {[%clk 0:02:06]} 18. Qxb2 {[%clk 0:02:39]}  Rb8 {[%clk 0:02:06]} 19. Qc3 {[%clk 0:02:36]}  h5 {[%clk 0:01:59]} 20. Rac1 {[%clk 0:02:36]}  h4 {[%clk 0:01:56]} 21. Rcd1 {[%clk 0:02:29]}  Qe7 {[%clk 0:01:47]} 22. e5 {[%clk 0:02:23]}  Ng4 {[%clk 0:01:38]} 23. Bxb7 {[%clk 0:02:20]}  Rxb7 {[%clk 0:01:35]} 24. Nf3 {[%clk 0:02:20]}  h3 {[%clk 0:01:32]} 25. Qc6 {[%clk 0:02:11]}  Rb5 {[%clk 0:01:28]} 26. Qxa6 {[%clk 0:02:07]}  Qc5 {[%clk 0:01:23]} 27. Re2 {[%clk 0:01:37]}  Rxa5 {[%clk 0:01:19]} 28. Qb7 {[%clk 0:01:28]}  Nxe5 {[%clk 0:01:12]} 29. Nxe5 {[%clk 0:01:27]}  Rxe5 {[%clk 0:01:06]} 30. Qc8+ {[%clk 0:01:27]}  Qf8 {[%clk 0:01:00]} 31. Qxc7 {[%clk 0:01:17]}  Rxe2 {[%clk 0:00:48]} 32. Qxa5 {[%clk 0:01:17]}  g6 {[%clk 0:00:45]} 33. Kf1 {[%clk 0:01:07]}  Re8 {[%clk 0:00:42]} 34. Qb5 {[%clk 0:01:05]}  Qe7 {[%clk 0:00:40]} 35. Kg1 {[%clk 0:00:59]}  Qe4 {[%clk 0:00:35]} 36. Qf1 {[%clk 0:00:58]}  Qf5 {[%clk 0:00:32]} 37. Rd4 {[%clk 0:00:50]}  Rb8 {[%clk 0:00:27]} 38. Rf4 {[%clk 0:00:45]}  Qd5 {[%clk 0:00:24]} 39. Rh4 {[%clk 0:00:31]}  Rb1 {[%clk 0:00:21]} 40. Rxh3 {[%clk 0:00:27]}  Rxf1+ {[%clk 0:00:19]} 41. Kxf1 {[%clk 0:00:28]}  Qf3 {[%clk 0:00:17]} 42. Kg1 {[%clk 0:00:28]}  Kg7 {[%clk 0:00:17]} 43. Rh4 {[%clk 0:00:28]}  g5 {[%clk 0:00:17]} 44. Rd4 {[%clk 0:00:27]}  Qe2 {[%clk 0:00:16]} 45. h4 {[%clk 0:00:25]}  Qe5 {[%clk 0:00:12]} 46. Rg4 {[%clk 0:00:23]}  f6 {[%clk 0:00:10]} 47. hxg5 {[%clk 0:00:23]}  fxg5 {[%clk 0:00:11]} 48. Rc4 {[%clk 0:00:19]}  Kg6 {[%clk 0:00:09]} 49. Rc6+ {[%clk 0:00:20]}  Kh5 {[%clk 0:00:06]} 50. Rc1 {[%clk 0:00:20]}  Qe2 {[%clk 0:00:06]} 51. Kg2 {[%clk 0:00:18]}  Qe4+ {[%clk 0:00:05]} 52. Kh2 {[%clk 0:00:12]}  Qe2 {[%clk 0:00:05]} 53. Kg2 {[%clk 0:00:12]}  Qe4+ {[%clk 0:00:05]} 54. Kh2 {[%clk 0:00:12]}  Kg4 {[%clk 0:00:05]} 55. Rc3 {[%clk 0:00:09]}  Qe2 {[%clk 0:00:05]} 56. Kg2 {[%clk 0:00:09]}  Kh5 {[%clk 0:00:04]} 57. Re3 {[%clk 0:00:09]}  Qd2 {[%clk 0:00:04]} 58. Kf3 {[%clk 0:00:07]}  Qd1+ {[%clk 0:00:04]} 59. Kg2 {[%clk 0:00:08]}  Kg6 {[%clk 0:00:04]} 60. Re6+ {[%clk 0:00:08]}  Kf5 {[%clk 0:00:04]} 61. Re3 {[%clk 0:00:08]}  Qd5+ {[%clk 0:00:04]} 62. Kh2 {[%clk 0:00:08]}  Kg4 {[%clk 0:00:04]} 63. Rc3 {[%clk 0:00:04]}  Qb7 {[%clk 0:00:03]} 64. Re3 {[%clk 0:00:03]}  Qb2 {[%clk 0:00:03]} 65. Kg2 {[%clk 0:00:03]}  Kf5 {[%clk 0:00:03]} 66. Rf3+ {[%clk 0:00:03]}  Kg4 {[%clk 0:00:03]} 67. Re3 {[%clk 0:00:04]}  Kh5 {[%clk 0:00:03]} 68. Rd3 {[%clk 0:00:02]}  Kg6 {[%clk 0:00:03]} 69. Re3 {[%clk 0:00:03]}  Qc2 {[%clk 0:00:04]} 70. Kg1 {[%clk 0:00:02]}  Kf5 {[%clk 0:00:04]} 71. Kg2 {[%clk 0:00:03]}  Qc6+ {[%clk 0:00:04]} 72. Kg1 {[%clk 0:00:03]}  Qc2 {[%clk 0:00:04]} 73. Kg2 {[%clk 0:00:03]}  g4 {[%clk 0:00:05]} 74. Re1 {[%clk 0:00:03]}  Qd2 {[%clk 0:00:05]} 75. Re3 {[%clk 0:00:04]}  Qd5+ {[%clk 0:00:05]} 76. Kg1 {[%clk 0:00:04]}  Kg5 {[%clk 0:00:06]} 77. Re1 {[%clk 0:00:04]}  Qd2 {[%clk 0:00:06]} 78. Re3 {[%clk 0:00:04]}  Kf5 {[%clk 0:00:06]} 79. Kg2 {[%clk 0:00:05]}  Qc2 {[%clk 0:00:06]} 80. Re1 {[%clk 0:00:05]}  Qd2 {[%clk 0:00:06]} 81. Re3 {[%clk 0:00:05]} 1/2-1/2


[Site "https://www.chess.com"]